[Event "Titled Tuesday Blitz July 11 Late 2023"]
[White "Bjelobrk, Igor"]
[Black "Urbina Perez, Juan Antonio"]
[WhiteFideId "4300726"]
[BlackFideId "2217368"]
[WhiteElo "2640"]
[BlackElo "2513"]
[Result "1-0"]
[Round "7"]
[TimeControl "180+2"]
[Date "2023.07.11"]
[WhiteClock "0:01:32"]
[BlackClock "0:01:06"]
[Board "49"]

1. d4 {[%clk 0:02:59]}  d5 {[%clk 0:02:59]} 2. c4 {[%clk 0:02:57]}  c6 {[%clk 0:02:59]} 3. Nf3 {[%clk 0:02:55]}  Nf6 {[%clk 0:03:00]} 4. Qc2 {[%clk 0:02:54]}  g6 {[%clk 0:02:56]} 5. cxd5 {[%clk 0:02:54]}  cxd5 {[%clk 0:02:55]} 6. Nc3 {[%clk 0:02:53]}  Nc6 {[%clk 0:02:52]} 7. Bf4 {[%clk 0:02:50]}  Nh5 {[%clk 0:02:35]} 8. Be5 {[%clk 0:02:43]}  f6 {[%clk 0:02:28]} 9. Bg3 {[%clk 0:02:43]}  Nxg3 {[%clk 0:02:27]} 10. hxg3 {[%clk 0:02:43]}  Bg7 {[%clk 0:02:27]} 11. Rxh7 {[%clk 0:02:36]}  Kf7 {[%clk 0:02:20]} 12. Rxh8 {[%clk 0:02:35]}  Bxh8 {[%clk 0:02:21]} 13. e3 {[%clk 0:02:33]}  Be6 {[%clk 0:02:15]} 14. Be2 {[%clk 0:02:16]}  Rc8 {[%clk 0:02:14]} 15. Rc1 {[%clk 0:02:14]}  Qb6 {[%clk 0:02:06]} 16. Qd2 {[%clk 0:01:58]}  Na5 {[%clk 0:01:52]} 17. b3 {[%clk 0:01:58]}  Nc6 {[%clk 0:01:45]} 18. Na4 {[%clk 0:01:57]}  Qb4 {[%clk 0:01:39]} 19. Nc5 {[%clk 0:01:53]}  Qxd2+ {[%clk 0:01:27]} 20. Kxd2 {[%clk 0:01:53]}  b6 {[%clk 0:01:21]} 21. Nxe6 {[%clk 0:01:50]}  Kxe6 {[%clk 0:01:22]} 22. Bb5 {[%clk 0:01:40]}  Kd6 {[%clk 0:01:22]} 23. Nh4 {[%clk 0:01:36]}  a6 {[%clk 0:01:08]} 24. Bxc6 {[%clk 0:01:31]}  Rxc6 {[%clk 0:01:08]} 25. Rxc6+ {[%clk 0:01:32]}  Kxc6 {[%clk 0:01:09]} 26. Nxg6 {[%clk 0:01:32]}  Bg7 {[%clk 0:01:08]} 27. Nxe7+ {[%clk 0:01:32]}  Kd7 {[%clk 0:01:06]} 28. Nxd5 {[%clk 0:01:32]} 1-0


[Site "https://www.chess.com"]

[Event "Titled Tuesday Blitz July 11 Late 2023"]
[White "Todorovic, Bojan"]
[Black "Banzea, Alexandru-Bogdan"]
[WhiteFideId "917087"]
[BlackFideId "1232622"]
[WhiteElo "2406"]
[BlackElo "2624"]
[Result "1-0"]
[Round "7"]
[TimeControl "180+2"]
[Date "2023.07.11"]
[WhiteClock "0:00:31"]
[BlackClock "0:00:04"]
[Board "52"]

1. d4 {[%clk 0:02:59]}  Nf6 {[%clk 0:02:50]} 2. c4 {[%clk 0:02:58]}  c5 {[%clk 0:02:49]} 3. d5 {[%clk 0:02:57]}  b5 {[%clk 0:02:50]} 4. cxb5 {[%clk 0:02:57]}  a6 {[%clk 0:02:49]} 5. e3 {[%clk 0:02:58]}  g6 {[%clk 0:02:49]} 6. Nc3 {[%clk 0:02:55]}  Bg7 {[%clk 0:02:48]} 7. Nf3 {[%clk 0:02:55]}  O-O {[%clk 0:02:46]} 8. a4 {[%clk 0:02:54]}  Bb7 {[%clk 0:02:36]} 9. Ra3 {[%clk 0:02:48]}  e6 {[%clk 0:02:24]} 10. e4 {[%clk 0:02:45]}  exd5 {[%clk 0:02:17]} 11. exd5 {[%clk 0:02:44]}  Re8+ {[%clk 0:02:10]} 12. Be2 {[%clk 0:02:45]}  axb5 {[%clk 0:02:10]} 13. axb5 {[%clk 0:02:40]}  Ne4 {[%clk 0:01:50]} 14. Nxe4 {[%clk 0:02:25]}  Rxe4 {[%clk 0:01:51]} 15. Rxa8 {[%clk 0:02:22]}  Bxa8 {[%clk 0:01:52]} 16. O-O {[%clk 0:02:22]}  d6 {[%clk 0:01:46]} 17. Nd2 {[%clk 0:02:02]}  Rd4 {[%clk 0:01:42]} 18. Bf3 {[%clk 0:02:00]}  Bxd5 {[%clk 0:01:38]} 19. Bxd5 {[%clk 0:02:00]}  Rxd5 {[%clk 0:01:34]} 20. Qf3 {[%clk 0:02:00]}  Rd4 {[%clk 0:01:27]} 21. Qa8 {[%clk 0:01:57]}  Rb4 {[%clk 0:01:20]} 22. Qb7 {[%clk 0:01:46]}  Nd7 {[%clk 0:00:58]} 23. Ne4 {[%clk 0:01:44]}  Nb6 {[%clk 0:00:23]} 24. Bg5 {[%clk 0:01:06]}  Qc8 {[%clk 0:00:07]} 25. Qxb6 {[%clk 0:01:03]}  Rxe4 {[%clk 0:00:06]} 26. Qxd6 {[%clk 0:01:03]}  Rd4 {[%clk 0:00:05]} 27. Qe7 {[%clk 0:00:49]}  Rb4 {[%clk 0:00:05]} 28. Rd1 {[%clk 0:00:46]}  Bf8 {[%clk 0:00:02]} 29. Rd8 {[%clk 0:00:41]}  Qxd8 {[%clk 0:00:03]} 30. Qxd8 {[%clk 0:00:41]}  Rd4 {[%clk 0:00:04]} 31. Qxd4 {[%clk 0:00:38]}  cxd4 {[%clk 0:00:04]} 32. Bf4 {[%clk 0:00:33]}  Bc5 {[%clk 0:00:05]} 33. Bc7 {[%clk 0:00:33]}  d3 {[%clk 0:00:04]} 34. Kf1 {[%clk 0:00:33]}  Kf8 {[%clk 0:00:02]} 35. b6 {[%clk 0:00:33]}  Ke7 {[%clk 0:00:02]} 36. b7 {[%clk 0:00:34]}  Ba7 {[%clk 0:00:03]} 37. b8=Q {[%clk 0:00:34]}  Bxb8 {[%clk 0:00:03]} 38. Bxb8 {[%clk 0:00:34]}  Ke6 {[%clk 0:00:04]} 39. Ke1 {[%clk 0:00:33]}  Kd5 {[%clk 0:00:05]} 40. Kd2 {[%clk 0:00:33]}  Kc4 {[%clk 0:00:05]} 41. Be5 {[%clk 0:00:32]}  f5 {[%clk 0:00:04]} 42. f4 {[%clk 0:00:31]} 1-0


[Site "https://www.chess.com"]

[Event "Titled Tuesday Blitz July 11 Late 2023"]
[White "Yeritsyan, Hayk"]
[Black "Troff, Kayden"]
[WhiteFideId "13307320"]
[BlackFideId "2047896"]
[WhiteElo "2528"]
[BlackElo "2790"]
[Result "0-1"]
[Round "7"]
[TimeControl "180+2"]
[Date "2023.07.11"]
[WhiteClock "0:00:00"]
[BlackClock "0:00:12"]
[Board "55"]

1. d4 {[%clk 0:03:00]}  Nf6 {[%clk 0:02:59]} 2. Nf3 {[%clk 0:03:01]}  g6 {[%clk 0:02:59]} 3. Bf4 {[%clk 0:03:01]}  Bg7 {[%clk 0:02:58]} 4. h3 {[%clk 0:03:01]}  O-O {[%clk 0:02:58]} 5. e3 {[%clk 0:03:02]}  d5 {[%clk 0:02:59]} 6. c3 {[%clk 0:03:02]}  c5 {[%clk 0:02:57]} 7. Be2 {[%clk 0:03:02]}  Qb6 {[%clk 0:02:56]} 8. Qb3 {[%clk 0:03:02]}  Nc6 {[%clk 0:02:55]} 9. Nbd2 {[%clk 0:03:01]}  Na5 {[%clk 0:02:38]} 10. Qxb6 {[%clk 0:03:01]}  axb6 {[%clk 0:02:38]} 11. O-O {[%clk 0:03:00]}  Nc6 {[%clk 0:02:30]} 12. a3 {[%clk 0:02:56]}  Nd7 {[%clk 0:02:28]} 13. Rac1 {[%clk 0:02:53]}  e5 {[%clk 0:02:26]} 14. dxe5 {[%clk 0:02:54]}  Ndxe5 {[%clk 0:02:25]} 15. Nxe5 {[%clk 0:02:54]}  Nxe5 {[%clk 0:02:25]} 16. Bxe5 {[%clk 0:02:53]}  Bxe5 {[%clk 0:02:26]} 17. Nf3 {[%clk 0:02:51]}  Bf6 {[%clk 0:02:25]} 18. Rfd1 {[%clk 0:02:50]}  Be6 {[%clk 0:02:23]} 19. Rd2 {[%clk 0:02:47]}  Ra5 {[%clk 0:02:16]} 20. Rcd1 {[%clk 0:02:46]}  b5 {[%clk 0:02:16]} 21. Ne1 {[%clk 0:02:40]}  b4 {[%clk 0:02:11]} 22. axb4 {[%clk 0:02:38]}  cxb4 {[%clk 0:02:10]} 23. cxb4 {[%clk 0:02:38]}  Ra4 {[%clk 0:02:07]} 24. Nd3 {[%clk 0:02:36]}  b6 {[%clk 0:02:06]} 25. Bf3 {[%clk 0:02:31]}  d4 {[%clk 0:01:39]} 26. exd4 {[%clk 0:02:25]}  Bb3 {[%clk 0:01:32]} 27. Re1 {[%clk 0:02:14]}  Bg5 {[%clk 0:01:29]} 28. Rde2 {[%clk 0:01:58]}  Bc4 {[%clk 0:01:29]} 29. b3 {[%clk 0:01:25]}  Bxb3 {[%clk 0:01:27]} 30. Ne5 {[%clk 0:01:16]}  Bf6 {[%clk 0:00:35]} 31. Nd7 {[%clk 0:01:01]}  Bxd4 {[%clk 0:00:32]} 32. Nxf8 {[%clk 0:01:01]}  Kxf8 {[%clk 0:00:31]} 33. b5 {[%clk 0:00:58]}  Bc4 {[%clk 0:00:23]} 34. Re4 {[%clk 0:00:36]}  Bd3 {[%clk 0:00:22]} 35. Re8+ {[%clk 0:00:33]}  Kg7 {[%clk 0:00:22]} 36. Rd1 {[%clk 0:00:23]}  Bxb5 {[%clk 0:00:19]} 37. Re4 {[%clk 0:00:20]}  Bc5 {[%clk 0:00:20]} 38. Rxa4 {[%clk 0:00:18]}  Bxa4 {[%clk 0:00:21]} 39. Ra1 {[%clk 0:00:16]}  Bb3 {[%clk 0:00:17]} 40. Kf1 {[%clk 0:00:14]}  Bc4+ {[%clk 0:00:16]} 41. Be2 {[%clk 0:00:13]}  Bd5 {[%clk 0:00:16]} 42. Rb1 {[%clk 0:00:13]}  Kf6 {[%clk 0:00:16]} 43. Bd3 {[%clk 0:00:12]}  Ke5 {[%clk 0:00:16]} 44. f3 {[%clk 0:00:11]}  Kd4 {[%clk 0:00:16]} 45. Ke2 {[%clk 0:00:10]}  Be6 {[%clk 0:00:15]} 46. Rd1 {[%clk 0:00:09]}  Kc3 {[%clk 0:00:15]} 47. Rc1+ {[%clk 0:00:09]}  Kb2 {[%clk 0:00:15]} 48. Rd1 {[%clk 0:00:09]}  Bb3 {[%clk 0:00:14]} 49. Rd2+ {[%clk 0:00:08]}  Kc3 {[%clk 0:00:14]} 50. Be4 {[%clk 0:00:06]}  Bc4+ {[%clk 0:00:15]} 51. Kd1 {[%clk 0:00:06]}  b5 {[%clk 0:00:14]} 52. Rc2+ {[%clk 0:00:06]}  Kd4 {[%clk 0:00:13]} 53. Rd2+ {[%clk 0:00:05]}  Kc3 {[%clk 0:00:13]} 54. Rc2+ {[%clk 0:00:05]}  Kb4 {[%clk 0:00:10]} 55. Rd2 {[%clk 0:00:05]}  Ka3 {[%clk 0:00:10]} 56. Kc1 {[%clk 0:00:05]}  b4 {[%clk 0:00:10]} 57. Kb1 {[%clk 0:00:04]}  b3 {[%clk 0:00:09]} 58. Rd8 {[%clk 0:00:03]}  Kb4 {[%clk 0:00:09]} 59. Bd3 {[%clk 0:00:03]}  Be6 {[%clk 0:00:09]} 60. Re8 {[%clk 0:00:02]}  Kc3 {[%clk 0:00:09]} 61. Be4 {[%clk 0:00:03]}  Bd4 {[%clk 0:00:09]} 62. Rd8 {[%clk 0:00:02]}  Be5 {[%clk 0:00:09]} 63. Bd5 {[%clk 0:00:02]}  Bf5+ {[%clk 0:00:09]} 64. Be4 {[%clk 0:00:03]}  Be6 {[%clk 0:00:09]} 65. Bd5 {[%clk 0:00:04]}  Bf5+ {[%clk 0:00:09]} 66. Be4 {[%clk 0:00:04]}  Bxe4+ {[%clk 0:00:09]} 67. fxe4 {[%clk 0:00:04]}  f6 {[%clk 0:00:10]} 68. Rd7 {[%clk 0:00:04]}  h5 {[%clk 0:00:09]} 69. g4 {[%clk 0:00:04]}  hxg4 {[%clk 0:00:09]} 70. hxg4 {[%clk 0:00:05]}  g5 {[%clk 0:00:10]} 71. Rd8 {[%clk 0:00:05]}  Bd4 {[%clk 0:00:08]} 72. Rd6 {[%clk 0:00:05]}  Kd3 {[%clk 0:00:08]} 73. e5 {[%clk 0:00:04]}  fxe5 {[%clk 0:00:09]} 74. Rg6 {[%clk 0:00:04]}  e4 {[%clk 0:00:09]} 75. Rxg5 {[%clk 0:00:05]}  e3 {[%clk 0:00:10]} 76. Rg8 {[%clk 0:00:04]}  e2 {[%clk 0:00:10]} 77. Re8 {[%clk 0:00:05]}  Be3 {[%clk 0:00:11]} 78. Rd8+ {[%clk 0:00:05]}  Kc4 {[%clk 0:00:11]} 79. Rc8+ {[%clk 0:00:05]}  Kd5 {[%clk 0:00:11]} 80. Rd8+ {[%clk 0:00:05]}  Kc6 {[%clk 0:00:12]} 81. Rc8+ {[%clk 0:00:03]}  Kd7 {[%clk 0:00:12]} 82. Rc1 {[%clk 0:00:00]}  Bxc1 {[%clk 0:00:12]} 0-1


[Site "https://www.chess.com"]

[Event "Titled Tuesday Blitz July 11 Late 2023"]
[White "Koc, Przemyslaw"]
[Black "Rosen, Eric"]
[WhiteFideId "1109081"]
[BlackFideId "2032562"]
[WhiteElo "2521"]
[BlackElo "2694"]
[Result "0-1"]
[Round "7"]
[TimeControl "180+2"]
[Date "2023.07.11"]
[WhiteClock "0:01:16"]
[BlackClock "0:01:54"]
[Board "57"]

1. Nf3 {[%clk 0:03:00]}  d5 {[%clk 0:02:59]} 2. d4 {[%clk 0:03:01]}  Nf6 {[%clk 0:02:59]} 3. c3 {[%clk 0:03:01]}  c5 {[%clk 0:02:59]} 4. e3 {[%clk 0:03:01]}  cxd4 {[%clk 0:02:58]} 5. exd4 {[%clk 0:03:01]}  Nc6 {[%clk 0:02:59]} 6. Bd3 {[%clk 0:03:00]}  Bg4 {[%clk 0:02:59]} 7. Nbd2 {[%clk 0:03:00]}  e6 {[%clk 0:03:00]} 8. h3 {[%clk 0:02:59]}  Bh5 {[%clk 0:03:00]} 9. Qb3 {[%clk 0:02:57]}  Qc7 {[%clk 0:02:57]} 10. O-O {[%clk 0:02:55]}  Bd6 {[%clk 0:02:57]} 11. Re1 {[%clk 0:02:44]}  O-O {[%clk 0:02:57]} 12. a4 {[%clk 0:02:32]}  a6 {[%clk 0:02:53]} 13. Qd1 {[%clk 0:02:25]}  Rab8 {[%clk 0:02:50]} 14. Qe2 {[%clk 0:02:24]}  Rfc8 {[%clk 0:02:32]} 15. Nf1 {[%clk 0:02:13]}  b5 {[%clk 0:02:31]} 16. axb5 {[%clk 0:02:12]}  axb5 {[%clk 0:02:31]} 17. Bxb5 {[%clk 0:02:09]}  Bxf3 {[%clk 0:02:28]} 18. gxf3 {[%clk 0:02:10]}  Nh5 {[%clk 0:02:24]} 19. Bd3 {[%clk 0:01:57]}  Qe7 {[%clk 0:02:15]} 20. Kg2 {[%clk 0:01:45]}  Qh4 {[%clk 0:02:14]} 21. f4 {[%clk 0:01:40]}  Bxf4 {[%clk 0:01:55]} 22. b4 {[%clk 0:01:16]}  Bxc1 {[%clk 0:01:54]} 0-1


[Site "https://www.chess.com"]

[Event "Titled Tuesday Blitz July 11 Late 2023"]
[White "Adewumi, Tanitoluwa"]
[Black "Martinez Reyes, Pedro Ramon"]
[WhiteFideId "30966396"]
[BlackFideId "3901807"]
[WhiteElo "2648"]
[BlackElo "2515"]
[Result "1-0"]
[Round "7"]
[TimeControl "180+2"]
[Date "2023.07.11"]
[WhiteClock "0:00:36"]
[BlackClock "0:00:13"]
[Board "58"]

1. e4 {[%clk 0:02:46]}  g6 {[%clk 0:02:58]} 2. d4 {[%clk 0:02:45]}  Bg7 {[%clk 0:02:59]} 3. Nc3 {[%clk 0:02:44]}  a6 {[%clk 0:02:59]} 4. Be3 {[%clk 0:02:44]}  d6 {[%clk 0:02:59]} 5. Qd2 {[%clk 0:02:41]}  b5 {[%clk 0:02:59]} 6. a4 {[%clk 0:02:40]}  b4 {[%clk 0:02:53]} 7. Nce2 {[%clk 0:02:38]}  Nf6 {[%clk 0:02:50]} 8. f3 {[%clk 0:02:34]}  a5 {[%clk 0:02:44]} 9. Bh6 {[%clk 0:02:30]}  O-O {[%clk 0:02:41]} 10. h4 {[%clk 0:02:29]}  c5 {[%clk 0:02:26]} 11. h5 {[%clk 0:02:26]}  cxd4 {[%clk 0:02:26]} 12. hxg6 {[%clk 0:02:26]}  fxg6 {[%clk 0:02:21]} 13. Bxg7 {[%clk 0:02:26]}  Kxg7 {[%clk 0:02:21]} 14. Qh6+ {[%clk 0:02:26]}  Kh8 {[%clk 0:02:20]} 15. Nf4 {[%clk 0:02:21]}  Rg8 {[%clk 0:02:06]} 16. Bc4 {[%clk 0:02:10]}  Rg7 {[%clk 0:01:56]} 17. Nxg6+ {[%clk 0:01:57]}  Rxg6 {[%clk 0:01:57]} 18. Qxg6 {[%clk 0:01:58]}  Nc6 {[%clk 0:01:52]} 19. Qg3 {[%clk 0:01:34]}  Ne5 {[%clk 0:01:48]} 20. Bb3 {[%clk 0:01:31]}  d3 {[%clk 0:01:45]} 21. f4 {[%clk 0:01:26]}  d2+ {[%clk 0:01:36]} 22. Kd1 {[%clk 0:01:14]}  Neg4 {[%clk 0:00:50]} 23. Nf3 {[%clk 0:00:50]}  Nxe4 {[%clk 0:00:43]} 24. Qh4 {[%clk 0:00:49]}  Nef2+ {[%clk 0:00:41]} 25. Kxd2 {[%clk 0:00:47]}  Nxh1 {[%clk 0:00:36]} 26. Rxh1 {[%clk 0:00:37]}  Nf6 {[%clk 0:00:36]} 27. Ng5 {[%clk 0:00:35]}  Qb6 {[%clk 0:00:14]} 28. Qxh7+ {[%clk 0:00:35]}  Nxh7 {[%clk 0:00:13]} 29. Rxh7# {[%clk 0:00:36]} 1-0


[Site "https://www.chess.com"]

[Event "Titled Tuesday Blitz July 11 Late 2023"]
[White "Rangel, Daniel"]
[Black "Ovchinnikov, Vsevolod"]
[WhiteFideId "2124475"]
[BlackFideId "24176842"]
[WhiteElo "2498"]
[BlackElo "2644"]
[Result "1/2-1/2"]
[Round "7"]
[TimeControl "180+2"]
[Date "2023.07.11"]
[WhiteClock "0:00:09"]
[BlackClock "0:00:08"]
[Board "59"]

1. c4 {[%clk 0:03:00]}  Nf6 {[%clk 0:02:59]} 2. g3 {[%clk 0:02:59]}  g6 {[%clk 0:02:59]} 3. Bg2 {[%clk 0:02:59]}  d5 {[%clk 0:03:00]} 4. cxd5 {[%clk 0:02:57]}  Nxd5 {[%clk 0:03:00]} 5. Nf3 {[%clk 0:02:58]}  Bg7 {[%clk 0:03:00]} 6. O-O {[%clk 0:02:59]}  Nb6 {[%clk 0:03:01]} 7. Nc3 {[%clk 0:02:58]}  Nc6 {[%clk 0:03:02]} 8. b3 {[%clk 0:02:58]}  O-O {[%clk 0:03:01]} 9. Bb2 {[%clk 0:02:58]}  Bg4 {[%clk 0:03:00]} 10. d3 {[%clk 0:02:58]}  Qd7 {[%clk 0:02:54]} 11. Qd2 {[%clk 0:02:48]}  Bh3 {[%clk 0:02:50]} 12. Bxh3 {[%clk 0:02:46]}  Qxh3 {[%clk 0:02:51]} 13. Ne4 {[%clk 0:02:46]}  e5 {[%clk 0:02:44]} 14. Nc5 {[%clk 0:02:42]}  Rab8 {[%clk 0:02:40]} 15. Rac1 {[%clk 0:02:40]}  Rfe8 {[%clk 0:02:33]} 16. Nxb7 {[%clk 0:02:06]}  Bh6 {[%clk 0:01:34]} 17. e3 {[%clk 0:01:58]}  Ne7 {[%clk 0:01:30]} 18. Nc5 {[%clk 0:01:45]}  f6 {[%clk 0:01:23]} 19. d4 {[%clk 0:01:32]}  Rbd8 {[%clk 0:01:20]} 20. Qe2 {[%clk 0:01:15]}  exd4 {[%clk 0:01:11]} 21. Nxd4 {[%clk 0:01:14]}  Ned5 {[%clk 0:01:03]} 22. Qf3 {[%clk 0:00:46]}  Nxe3 {[%clk 0:00:27]} 23. fxe3 {[%clk 0:00:47]}  Bxe3+ {[%clk 0:00:27]} 24. Kh1 {[%clk 0:00:43]}  Bxd4 {[%clk 0:00:27]} 25. Bxd4 {[%clk 0:00:39]}  Rxd4 {[%clk 0:00:28]} 26. Qxf6 {[%clk 0:00:36]}  Rdd8 {[%clk 0:00:23]} 27. Rce1 {[%clk 0:00:27]}  Rf8 {[%clk 0:00:18]} 28. Qe6+ {[%clk 0:00:17]}  Qxe6 {[%clk 0:00:18]} 29. Nxe6 {[%clk 0:00:18]}  Rxf1+ {[%clk 0:00:14]} 30. Rxf1 {[%clk 0:00:19]}  Rc8 {[%clk 0:00:12]} 31. Rd1 {[%clk 0:00:17]}  c5 {[%clk 0:00:09]} 32. Rc1 {[%clk 0:00:13]}  c4 {[%clk 0:00:09]} 33. bxc4 {[%clk 0:00:13]}  Rxc4 {[%clk 0:00:09]} 34. Rxc4 {[%clk 0:00:12]}  Nxc4 {[%clk 0:00:10]} 35. Nd4 {[%clk 0:00:12]}  Kf7 {[%clk 0:00:09]} 36. Kg2 {[%clk 0:00:12]}  Kf6 {[%clk 0:00:09]} 37. Kf3 {[%clk 0:00:10]}  Nd6 {[%clk 0:00:08]} 38. Ke3 {[%clk 0:00:10]}  a6 {[%clk 0:00:07]} 39. Kf4 {[%clk 0:00:08]}  g5+ {[%clk 0:00:06]} 40. Ke3 {[%clk 0:00:08]}  Ke5 {[%clk 0:00:06]} 41. Nf3+ {[%clk 0:00:08]}  Kf5 {[%clk 0:00:06]} 42. h3 {[%clk 0:00:08]}  h5 {[%clk 0:00:06]} 43. Nd4+ {[%clk 0:00:08]}  Ke5 {[%clk 0:00:06]} 44. Nf3+ {[%clk 0:00:08]}  Kf5 {[%clk 0:00:07]} 45. Nd4+ {[%clk 0:00:09]}  Ke5 {[%clk 0:00:07]} 46. Nf3+ {[%clk 0:00:09]}  Kf5 {[%clk 0:00:08]} 1/2-1/2


[Site "https://www.chess.com"]

[Event "Titled Tuesday Blitz July 11 Late 2023"]
[White "Sidletskyi, Ivan"]
[Black "Stachanczyk, Jacek"]
[WhiteFideId "14156024"]
[BlackFideId "1116657"]
[WhiteElo "2551"]
[BlackElo "2386"]
[Result "1-0"]
[Round "7"]
[TimeControl "180+2"]
[Date "2023.07.11"]
[WhiteClock "0:02:12"]
[BlackClock "0:01:41"]
[Board "65"]

1. e4 {[%clk 0:03:00]}  c5 {[%clk 0:02:57]} 2. Nf3 {[%clk 0:03:01]}  d6 {[%clk 0:02:57]} 3. d4 {[%clk 0:03:01]}  cxd4 {[%clk 0:02:58]} 4. Nxd4 {[%clk 0:03:01]}  Nf6 {[%clk 0:02:58]} 5. Nc3 {[%clk 0:03:02]}  Nc6 {[%clk 0:02:58]} 6. g3 {[%clk 0:03:02]}  g6 {[%clk 0:02:58]} 7. Nxc6 {[%clk 0:03:02]}  bxc6 {[%clk 0:02:57]} 8. Bg2 {[%clk 0:03:03]}  Bd7 {[%clk 0:02:54]} 9. b3 {[%clk 0:03:01]}  Bg7 {[%clk 0:02:54]} 10. Bb2 {[%clk 0:03:01]}  O-O {[%clk 0:02:53]} 11. O-O {[%clk 0:03:01]}  Qc8 {[%clk 0:02:53]} 12. Re1 {[%clk 0:03:00]}  Bh3 {[%clk 0:02:52]} 13. Bh1 {[%clk 0:03:00]}  Nd7 {[%clk 0:02:38]} 14. Na4 {[%clk 0:02:32]}  Ne5 {[%clk 0:02:32]} 15. f4 {[%clk 0:02:27]}  Bg4 {[%clk 0:02:31]} 16. Qd2 {[%clk 0:02:13]}  Nf3+ {[%clk 0:02:25]} 17. Bxf3 {[%clk 0:02:12]}  Bxf3 {[%clk 0:01:58]} 18. Bxg7 {[%clk 0:02:12]}  Kxg7 {[%clk 0:01:58]} 19. Qc3+ {[%clk 0:02:12]}  f6 {[%clk 0:01:41]} 20. Qxf3 {[%clk 0:02:12]} 1-0


[Site "https://www.chess.com"]

[Event "Titled Tuesday Blitz July 11 Late 2023"]
[White "Cooper, Aaron"]
[Black "Morefield, Jason"]
[WhiteFideId "2634945"]
[BlackFideId "30920825"]
[WhiteElo "2263"]
[BlackElo "2767"]
[Result "0-1"]
[Round "7"]
[TimeControl "180+2"]
[Date "2023.07.11"]
[WhiteClock "0:00:07"]
[BlackClock "0:00:31"]
[Board "67"]

1. b4 {[%clk 0:03:00]}  a6 {[%clk 0:02:57]} 2. Bb2 {[%clk 0:02:58]}  Nc6 {[%clk 0:02:56]} 3. a3 {[%clk 0:02:56]}  Nf6 {[%clk 0:02:54]} 4. e3 {[%clk 0:02:54]}  e5 {[%clk 0:02:53]} 5. c4 {[%clk 0:02:49]}  Be7 {[%clk 0:02:50]} 6. Nc3 {[%clk 0:02:46]}  O-O {[%clk 0:02:49]} 7. d3 {[%clk 0:02:42]}  d5 {[%clk 0:02:49]} 8. cxd5 {[%clk 0:02:42]}  Nxd5 {[%clk 0:02:50]} 9. Nf3 {[%clk 0:02:40]}  Be6 {[%clk 0:02:33]} 10. Be2 {[%clk 0:02:39]}  f6 {[%clk 0:02:26]} 11. O-O {[%clk 0:02:38]}  Kh8 {[%clk 0:02:26]} 12. Rc1 {[%clk 0:02:38]}  a5 {[%clk 0:02:25]} 13. b5 {[%clk 0:02:36]}  Na7 {[%clk 0:02:21]} 14. Nxd5 {[%clk 0:02:32]}  Bxd5 {[%clk 0:02:19]} 15. e4 {[%clk 0:02:32]}  Bg8 {[%clk 0:02:14]} 16. d4 {[%clk 0:02:32]}  exd4 {[%clk 0:02:14]} 17. Nxd4 {[%clk 0:02:31]}  Bd6 {[%clk 0:01:54]} 18. Nf5 {[%clk 0:02:27]}  Bf4 {[%clk 0:01:54]} 19. Qxd8 {[%clk 0:02:23]}  Rfxd8 {[%clk 0:01:55]} 20. Rcd1 {[%clk 0:02:24]}  Bb3 {[%clk 0:01:49]} 21. Rxd8+ {[%clk 0:02:19]}  Rxd8 {[%clk 0:01:50]} 22. g3 {[%clk 0:02:18]}  Rd2 {[%clk 0:01:37]} 23. gxf4 {[%clk 0:02:10]}  Rxb2 {[%clk 0:01:37]} 24. Bd3 {[%clk 0:02:01]}  g6 {[%clk 0:01:33]} 25. Nd4 {[%clk 0:01:56]}  Ba4 {[%clk 0:01:31]} 26. Rc1 {[%clk 0:01:52]}  c6 {[%clk 0:01:21]} 27. bxc6 {[%clk 0:01:46]}  Nxc6 {[%clk 0:01:21]} 28. Nxc6 {[%clk 0:01:45]}  Bxc6 {[%clk 0:01:22]} 29. e5 {[%clk 0:01:33]}  Kg7 {[%clk 0:01:15]} 30. e6 {[%clk 0:01:25]}  Kf8 {[%clk 0:01:12]} 31. f5 {[%clk 0:01:21]}  gxf5 {[%clk 0:01:11]} 32. Bxf5 {[%clk 0:01:21]}  Rb3 {[%clk 0:01:07]} 33. Re1 {[%clk 0:01:16]}  Ke7 {[%clk 0:01:06]} 34. Bxh7 {[%clk 0:00:56]}  Rxa3 {[%clk 0:01:04]} 35. Bf5 {[%clk 0:00:52]}  Rf3 {[%clk 0:01:01]} 36. Be4 {[%clk 0:00:49]}  Bxe4 {[%clk 0:00:58]} 37. Rxe4 {[%clk 0:00:50]}  b5 {[%clk 0:00:56]} 38. Kg2 {[%clk 0:00:49]}  Rf5 {[%clk 0:00:55]} 39. f4 {[%clk 0:00:44]}  b4 {[%clk 0:00:53]} 40. Kf3 {[%clk 0:00:40]}  b3 {[%clk 0:00:52]} 41. Re1 {[%clk 0:00:19]}  a4 {[%clk 0:00:47]} 42. Ke4 {[%clk 0:00:20]}  Rb5 {[%clk 0:00:46]} 43. Kd3 {[%clk 0:00:19]}  a3 {[%clk 0:00:40]} 44. Kc4 {[%clk 0:00:20]}  Rb6 {[%clk 0:00:32]} 45. f5 {[%clk 0:00:11]}  b2 {[%clk 0:00:32]} 46. Rd1 {[%clk 0:00:07]}  b1=Q {[%clk 0:00:31]} 47. Rd7+ {[%clk 0:00:07]}  Ke8 {[%clk 0:00:32]} 48. Rf7 {[%clk 0:00:06]}  Qe4+ {[%clk 0:00:30]} 49. Kc5 {[%clk 0:00:06]}  Rc6+ {[%clk 0:00:30]} 50. Kb5 {[%clk 0:00:07]}  Qc4+ {[%clk 0:00:31]} 51. Ka5 {[%clk 0:00:07]}  Ra6# {[%clk 0:00:31]} 0-1


[Site "https://www.chess.com"]

[Event "Titled Tuesday Blitz July 11 Late 2023"]
[White "Mikhailov, Viacheslav"]
[Black "Nunez V, Gustavo Eduardo"]
[WhiteFideId "4187369"]
[BlackFideId "4403690"]
[WhiteElo "2640"]
[BlackElo "2447"]
[Result "1-0"]
[Round "7"]
[TimeControl "180+2"]
[Date "2023.07.11"]
[WhiteClock "0:01:48"]
[BlackClock "0:00:12"]
[Board "69"]

1. Nf3 {[%clk 0:02:59]}  g6 {[%clk 0:02:58]} 2. g3 {[%clk 0:02:58]}  Bg7 {[%clk 0:02:59]} 3. Bg2 {[%clk 0:02:59]}  Nf6 {[%clk 0:02:56]} 4. O-O {[%clk 0:02:59]}  O-O {[%clk 0:02:57]} 5. c4 {[%clk 0:02:59]}  c5 {[%clk 0:02:56]} 6. Nc3 {[%clk 0:02:59]}  Nc6 {[%clk 0:02:46]} 7. d4 {[%clk 0:02:59]}  d6 {[%clk 0:02:43]} 8. b3 {[%clk 0:02:58]}  Bf5 {[%clk 0:02:40]} 9. Bb2 {[%clk 0:02:56]}  cxd4 {[%clk 0:02:38]} 10. Nxd4 {[%clk 0:02:56]}  Nxd4 {[%clk 0:02:39]} 11. Qxd4 {[%clk 0:02:56]}  Ne4 {[%clk 0:02:39]} 12. Qe3 {[%clk 0:02:56]}  Nxc3 {[%clk 0:02:39]} 13. Bxc3 {[%clk 0:02:57]}  Bxc3 {[%clk 0:02:39]} 14. Qxc3 {[%clk 0:02:58]}  Qc7 {[%clk 0:02:37]} 15. h4 {[%clk 0:02:56]}  h5 {[%clk 0:02:31]} 16. Rac1 {[%clk 0:02:55]}  Rac8 {[%clk 0:02:30]} 17. Rfd1 {[%clk 0:02:51]}  Bd7 {[%clk 0:02:28]} 18. Qe3 {[%clk 0:02:51]}  Bc6 {[%clk 0:02:25]} 19. c5 {[%clk 0:02:43]}  Rfd8 {[%clk 0:01:58]} 20. cxd6 {[%clk 0:02:42]}  Rxd6 {[%clk 0:01:59]} 21. Rxd6 {[%clk 0:02:38]}  Qxd6 {[%clk 0:01:53]} 22. Bxc6 {[%clk 0:02:34]}  Rxc6 {[%clk 0:01:54]} 23. Rxc6 {[%clk 0:02:33]}  bxc6 {[%clk 0:01:53]} 24. Qxa7 {[%clk 0:02:28]}  Qd1+ {[%clk 0:01:51]} 25. Kg2 {[%clk 0:02:27]}  Qxe2 {[%clk 0:01:51]} 26. Qa8+ {[%clk 0:02:27]}  Kg7 {[%clk 0:01:51]} 27. Qxc6 {[%clk 0:02:27]}  Qxa2 {[%clk 0:01:52]} 28. b4 {[%clk 0:02:27]}  e5 {[%clk 0:01:14]} 29. b5 {[%clk 0:02:27]}  Qa4 {[%clk 0:01:13]} 30. Qd5 {[%clk 0:02:18]}  e4 {[%clk 0:00:48]} 31. b6 {[%clk 0:02:13]}  Qb4 {[%clk 0:00:45]} 32. b7 {[%clk 0:02:10]}  Kh6 {[%clk 0:00:28]} 33. Qd8 {[%clk 0:01:49]}  Qd4 {[%clk 0:00:12]} 34. Qxd4 {[%clk 0:01:48]} 1-0


[Site "https://www.chess.com"]